[Event "Romanian Championship 2024"]
[Site "Eforie Nord"]
[Date "2024.02.29"]
[Round "7.1"]
[White "Gavrilescu, David"]
[Black "Lupulescu, Constantin"]
[Result "1/2-1/2"]
[ECO "E05"]
[WhiteElo "2523"]
[BlackElo "2589"]
[Annotator "TA"]
[PlyCount "45"]
[EventDate "2024.02.24"]
[EventType "swiss"]
[EventCountry "ROU"]
[SourceTitle "playchess.com"]
[Source "ChessBase"]
[SourceQuality "1"]
[TimeControl "40/5400+30:900+30"]

{[%evp 13,45,12,18,14,7,7,20,19,22,33,52,42,70,78,64,75,71,70,71,68,68,49,52,47,52,65,50,59,72,63,65,65,95,0]} 1. Nf3 {[%emt 0:00:06]} d5 {[%emt 0:00:10]} 2. g3 {[%emt 0:00:21]} Nf6 {[%emt 0:00:18]} 3. Bg2 {[%emt 0:00:22]} e6 {[%emt 0:00:28]} 4. O-O {[%emt 0:00:24]} Be7 {[%emt 0:00:39]} 5. c4 {[%emt 0:00:44]} O-O {[%emt 0:01:07]} 6. d4 {[%emt 0:01:01]} dxc4 {[%emt 0:01:26]} 7. Qc2 {[%emt 0:00:35]} b5 {[%emt 0:01:17]} 8. a4 {[%emt 0:00:33]} b4 {[%emt 0:00:54]} 9. Nfd2 {[%emt 0:01:29]} ({Much weaker is} 9. Qxc4 Ba6 10. Qc2 Nbd7) 9... Nd5 {[%emt 0:02:55]} 10. Nxc4 {[%emt 0:00:29] The position is equal.} ({Of course not} 10. Qxc4 Ba6 11. Qc2 c5 $17 (11... Bxe2 12. Re1 $15)) 10... c5 {[%emt 0:00:30]} 11. dxc5 {[%emt 0:00:36]} Bxc5 {[%emt 0:00:25]} 12. e4 {[%emt 0:01:16]} Nb6 {[%emt 0:01:34]} 13. Ncd2 {[%emt 0:01:26]} N8d7 {[%emt 0:01:41] Strongly threatening ...Ba6.} 14. a5 $1 {[%emt 0:00:59]} Ba6 {[%emt 0:02:30][%cal Oa8c8] ...Rc8! is the strong threat.} 15. axb6 {[%emt 1:27:39]} Rc8 $1 {[%cal Oc5f2] [#]} 16. Qd1 $1 {[%emt 0:00:00]} Qxb6 {[%emt 0:00:52] [#]} 17. Nb3 $1 {[%emt 0:00:00] Hoping for Nxc5.} Bxf1 {[%emt 0:00:44]} 18. Qxf1 {[%emt 0:00:00]} h6 {[%emt 0:01:44]} 19. Nxc5 {[%emt 0:00:00]} Qxc5 {[%emt 0:00:57]} 20. Nd2 {[%emt 0:00:00]} Nb6 {[%emt 0:00:33]} 21. Nb3 {[%emt 0:00:00]} Qc2 {[%emt 0:00:30]} 22. Nd4 {[%emt 0:00:00]} Qc5 {[%emt 0:00:53] [#]} 23. Nb3 {[%emt 0:00:00] Weighted Error Value: White=0.00 (flawless) /Black=0.04 (flawless) .  Mistake:       	White=1     	---        Inaccurate:     	---       	Black=1      OK:         	White=7     	Black=6      Best:        	White=2     	Black=1      Strong:       	White=3     	Black=1} (23. Nb5 $1 $16) 1/2-1/2

[Event "Romanian Championship 2024"]
[Site "Eforie Nord"]
[Date "2024.02.29"]
[Round "7.2"]
[White "Manolache, Marius"]
[Black "Parligras, Mircea-Emilian"]
[Result "0-1"]
[ECO "D02"]
[WhiteElo "2387"]
[BlackElo "2539"]
[Annotator "TA"]
[PlyCount "80"]
[EventDate "2024.02.24"]
[EventType "swiss"]
[EventCountry "ROU"]
[SourceTitle "playchess.com"]
[Source "ChessBase"]
[SourceQuality "1"]
[TimeControl "40/5400+30:900+30"]

{[%evp 11,80,0,21,7,28,10,26,0,7,0,16,14,20,0,11,7,0,0,12,8,19,19,12,12,42,19,29,16,6,14,22,14,16,0,0,-42,-25,-72,-84,-165,-171,-179,-181,-171,-177,-217,-271,-262,-248,-254,-253,-242,-244,-255,-272,-531,-512,-518,-516,-515,-500,-491,-512,-516,-526,-510,-518,-505,-510,-508,-486]} 1. d4 {[%emt 0:00:10]} Nf6 {[%emt 0:00:11]} 2. Nf3 {[%emt 0:00:17]} d5 {[%emt 0:00:18]} 3. Bf4 {[%emt 0:00:35]} c5 {[%emt 0:00:33]} 4. e3 {[%emt 0:00:14]} Nc6 {[%emt 0:00:16]} 5. Nbd2 {[%emt 0:01:02]} e6 {[%emt 0:00:28]} 6. c3 {[%emt 0:02:57]} cxd4 {[%emt 0:00:17]} 7. exd4 {[%emt 0:05:41]} Nh5 {[%emt 0:00:13]} 8. Be3 {[%emt 0:00:37]} Bd6 {[%emt 0:00:09]} 9. Bb5 {[%emt 0:08:18] White has an edge.} Bd7 {[%emt 0:14:09]} 10. O-O {[%emt 0:08:14]} O-O {[%emt 0:01:00]} 11. Nb3 {[%emt 0:11:13]} Nf6 {[%emt 0:08:54]} 12. Bg5 {[%emt 0:07:56]} Qc7 {[%emt 0:04:49]} 13. Bxf6 {[%emt 0:05:54]} gxf6 {[%emt 0:00:05]} 14. Re1 {[%emt 0:00:58]} Kh8 {[%emt 0:01:26]} 15. Nc5 {[%emt 0:04:02]} Rg8 {[%emt 0:02:50]} 16. Nxd7 {[%emt 0:00:47]} Qxd7 {[%emt 0:00:14]} 17. g3 {[%emt 0:01:19]} Rg7 {[%emt 0:07:03]} 18. Kh1 {[%emt 0:00:16]} Rag8 {[%emt 0:56:35]} 19. Rc1 {[%emt 0:05:47][%cal Ba1c1,Bc1c2,Bc2e2][%mdl 32]} a6 {[%emt 0:00:00]} 20. Bf1 {[%emt 0:01:16]} Bb8 {[%emt 0:00:00]} 21. Bg2 {[%emt 0:06:01]} f5 {[%emt 0:00:00]} 22. Rc2 {[%emt 0:07:09]} f4 {[%emt 0:00:00]} 23. Rce2 {[%emt 0:00:13]} Qd8 {[%emt 0:00:00]} 24. Qd3 {[%emt 0:01:00] [#]} (24. Qd2 $11 {is superior.}) 24... Qf6 $1 $17 {[%emt 0:00:00] Black keeps a firm grip on the game.} 25. b4 {[%emt 0:05:37]} (25. c4 $17 {was the only chance.}) 25... Qh6 $19 {[%emt 0:00:00][%cal Rf4g3]} 26. Kg1 {[%emt 0:00:54]} Ne7 {[%emt 0:00:00]} 27. Ne5 {[%emt 0:01:55]} f6 {[%emt 0:00:00]} 28. Nf3 {[%emt 0:01:18][%cal Od3d2]} fxg3 {[%emt 0:00:00]} 29. fxg3 {[%emt 0:02:30] [#]} Bxg3 {[%emt 0:00:00][%mdl 512]} 30. hxg3 {[%emt 0:00:14]} Rxg3 {[%emt 0:00:00]} 31. Qd2 {[%emt 0:01:12]} Qh5 {[%emt 0:00:00][%mdl 1024] Black has strong compensation.} 32. Nh2 {[%emt 0:06:31][%cal Oe2f2]} Nf5 {[%emt 0:00:00][%cal Be7f5,Bf5g3,Bg3e4,Be4d2][%mdl 32]} 33. Kh1 $2 {[%emt 0:01:51]} (33. Rf2 Nh4 34. Ree2) 33... R3g6 {[%emt 0:00:00] Black is clearly winning.} 34. Rf2 {[%emt 0:02:27]} Rh6 {[%emt 0:01:12][%csl Gh6][%cal Rh5h2]} 35. Bf3 {[%emt 0:00:39]} Ng3+ {[%emt 0:01:05]} 36. Kg1 {[%emt 0:00:12]} Ne4+ {[%emt 0:00:50]} 37. Kh1 {[%emt 0:00:07] Black must now prevent Rxe4.} Qxf3+ {[%emt 0:01:03]} (37... Nxf2+ 38. Qxf2 Qg5 39. Rg1 $19 (39. Rxe6 {leads to mate.} Rxh2+ 40. Qxh2 Qc1+)) 38. Rxf3 {[%emt 0:00:09]} Nxd2 {[%emt 0:00:04]} 39. Rf2 {[%emt 0:00:31]} Ne4 {[%emt 0:00:08]} 40. Rg2 {[%emt 0:00:00]} Rhg6 {[%emt 0:00:00] Weighted Error Value: White=0.24 (precise) /Black=0.06 (flawless) .  Mistake:       	White=3     	---        Inaccurate:     	White=2     	Black=1      OK:         	White=11    	Black=18     Best:        	White=5     	Black=1      Strong:       	---       	Black=1      Brilliant:      	---       	Black=1} 0-1

[Event "Romanian Championship 2024"]
[Site "Eforie Nord"]
[Date "2024.02.29"]
[Round "7.3"]
[White "Ilinca, Felix-Antonio"]
[Black "Ghimpu, Samuel-Timotei"]
[Result "1/2-1/2"]
[ECO "B12"]
[WhiteElo "2415"]
[BlackElo "2467"]
[Annotator "TA"]
[PlyCount "39"]
[EventDate "2024.02.24"]
[EventType "swiss"]
[EventCountry "ROU"]
[SourceTitle "playchess.com"]
[Source "ChessBase"]
[SourceQuality "1"]
[TimeControl "40/5400+30:900+30"]

{[%evp 13,39,14,26,14,21,24,18,31,22,10,8,-68,-83,-78,40,39,50,0,0,0,0,0,0,0,0,0,0,0]} 1. e4 {[%emt 0:00:13]} c6 {[%emt 0:00:19]} 2. d4 {[%emt 0:01:09]} d5 {[%emt 0:00:15]} 3. e5 {[%emt 0:00:59]} Bf5 {[%emt 0:00:48]} 4. h4 {[%emt 0:00:26]} h6 {[%emt 0:01:54]} 5. g4 {[%emt 0:00:58]} Be4 {[%emt 0:00:07]} 6. f3 {[%emt 0:01:33]} Bh7 {[%emt 0:00:57]} 7. e6 {[%emt 0:02:29]} Qd6 {[%emt 0:00:13]} 8. exf7+ {[%emt 0:00:39]} Kxf7 {[%emt 0:00:11]} 9. f4 {[%emt 0:06:29]} Nf6 {[%emt 0:00:25]} 10. Nf3 {[%emt 0:04:03]} Nxg4 {[%emt 0:00:30]} 11. Bh3 {[%emt 0:01:21]} h5 {[%emt 0:00:27]} 12. Bxg4 {[%emt 0:02:27]} (12. Ne5+ $11 Kg8 13. Nxg4 hxg4 14. Qxg4 Bxc2 15. Qe6+ Kh7 (15... Qxe6+ 16. Bxe6+ Kh7 17. Rh2 $11) 16. Rh2 Qxe6+ 17. Bxe6) 12... hxg4 $15 {[%emt 0:00:09]} 13. Ne5+ {[%emt 0:01:06] [#]} Ke8 {[%emt 0:03:58]} ({Black should try} 13... Kg8 $1 $17 {Strongly threatening ...Be4.} 14. Qxg4 (14. Nxg4 Bf5 $17) 14... e6) 14. Qxg4 $14 {[%emt 0:01:24] Qc8+ would now be deadly.} Be4 {[%emt 0:02:04][%cal Oe7e6] [#]} 15. Nc3 $1 {[%emt 0:23:27] A dynamic duo of knights.} Bxh1 $11 {[%emt 0:08:12] The position is equal.} 16. Qc8+ {[%emt 0:00:44]} Qd8 {[%emt 0:00:07]} 17. Qe6 {[%emt 0:01:55][%csl Ge5][%cal Re6f7] Really sharp!} Qd6 $1 {[%emt 0:05:05]} ({Worse is} 17... Rxh4 18. Qg6#) 18. Qc8+ {[%emt 0:01:04]} Qd8 {[%emt 0:00:06]} 19. Qe6 {[%emt 0:01:34][%csl Ge5][%cal Re6f7]} Qd6 $1 {[%emt 0:00:50]} ({Not} 19... Rxh4 20. Qg6#) 20. Qc8+ {[%emt 0:00:58] Weighted Error Value: White=0.14 (very precise) /Black=0.21 (precise) .  Mistake:       	White=2     	Black=1      OK:         	White=5     	Black=3      Best:        	White=2     	Black=1      Strong:       	---       	Black=2} 1/2-1/2

[Event "Romanian Championship 2024"]
[Site "Eforie Nord"]
[Date "2024.02.29"]
[Round "7.4"]
[White "Cosma, Ioan"]
[Black "Ognean, Mihnea-Ionut"]
[Result "0-1"]
[ECO "E01"]
[WhiteElo "2316"]
[BlackElo "2382"]
[Annotator "TA"]
[PlyCount "94"]
[EventDate "2024.02.24"]
[EventType "swiss"]
[EventCountry "ROU"]
[SourceTitle "playchess.com"]
[Source "ChessBase"]
[SourceQuality "1"]
[TimeControl "40/5400+30:900+30"]

{[%evp 15,94,24,17,9,0,6,0,-12,54,-14,8,0,0,0,0,-25,9,0,0,0,0,0,-8,-10,0,-10,0,-12,-12,-13,0,-52,-45,-49,-14,-45,-50,-48,-39,-37,-43,-39,-45,-49,-43,-53,-52,-53,-53,-53,-53,-64,-43,-92,-104,-133,-131,-145,-136,-162,-159,-157,-158,-150,-140,-433,-520,-1020,-460,-460,-457,-414,-437,-435,-406,-406,-387,-433,-420,-6095,-400]} 1. Nf3 {[%emt 0:00:03]} d5 {[%emt 0:00:24]} 2. g3 {[%emt 0:00:07]} c5 {[%emt 0:00:55]} 3. Bg2 {[%emt 0:00:14]} Nc6 {[%emt 0:00:17]} 4. d4 {[%emt 0:00:12]} cxd4 {[%emt 0:00:38]} 5. Nxd4 {[%emt 0:00:07]} e6 {[%emt 0:00:04]} 6. O-O {[%emt 0:03:05]} Bc5 {[%emt 0:00:05]} 7. Nxc6 {[%emt 0:03:24]} bxc6 {[%emt 0:00:05]} 8. c4 {[%emt 0:00:02]} Nf6 {[%emt 0:01:22]} 9. Qa4 {[%emt 0:07:00]} Bd7 {[%emt 0:02:11]} 10. Qc2 {[%emt 0:01:27] aiming for cxd5.} Qe7 {[%emt 0:00:49]} 11. Bg5 {[%emt 0:10:57] The position is equal.} O-O {[%emt 0:14:28]} (11... Rc8 $11) 12. Nc3 {[%emt 0:12:42]} (12. e4 $14 dxe4 13. Nc3) 12... Bb6 {[%emt 0:16:12]} 13. Rad1 {[%emt 0:08:00]} h6 {[%emt 0:01:38]} 14. Bxf6 {[%emt 0:01:06]} Qxf6 {[%emt 0:00:04]} 15. cxd5 {[%emt 0:07:46]} exd5 {[%emt 0:05:42]} 16. e4 {[%emt 0:04:50]} Bg4 {[%emt 0:02:37]} 17. Rc1 dxe4 {[%emt 0:14:02]} 18. Qxe4 {[%emt 0:02:36]} Be6 {[%emt 0:05:53]} 19. Qxc6 {[%emt 0:03:48]} Rad8 {[%emt 0:00:05]} 20. b3 {[%emt 0:05:46]} Qg5 {[%emt 0:06:49]} 21. Ne4 {[%emt 0:07:59]} Qa5 {[%emt 0:04:22][%mdl 1024] Black has compensation.} 22. Qc2 {[%emt 0:00:51]} Rd4 {[%emt 0:02:07]} 23. Qb2 {[%emt 0:08:25]} (23. Rfd1 $11) 23... Rfd8 $15 {[%emt 0:01:07]} 24. Qe2 {[%emt 0:03:41]} Qe5 {[%emt 0:09:10]} (24... Bc8 $5 25. Rfe1 Bb7 26. Nf6+ gxf6 27. Bxb7 Rd2 28. Qg4+ Qg5 29. Qxg5+ fxg5 $17) 25. Nc3 {[%emt 0:01:53]} Qxe2 {[%emt 0:03:23]} 26. Nxe2 {[%emt 0:00:04]} Rd2 {[%emt 0:00:02][%csl LRa2,LRe2]} 27. Nf4 {[%emt 0:00:07]} Rxa2 {[%emt 0:00:42]} 28. Nxe6 {[%emt 0:00:18]} fxe6 {[%emt 0:00:03]} 29. Bh3 {[%emt 0:02:44]} Kf7 {[%emt 0:01:58]} 30. Rc6 {[%emt 0:01:54]} e5 {[%emt 0:00:57]} 31. Rc3 {[%emt 0:02:24]} Rdd2 {[%emt 0:03:45][%cal Rd2f2]} 32. Rf3+ {[%emt 0:00:05]} Ke7 {[%emt 0:00:01]} 33. Bf5 {[%emt 0:00:14]} g5 {[%emt 0:01:12]} 34. g4 {[%emt 0:00:42]} (34. h4 $15 {should be considered.}) 34... Kd6 $17 {[%emt 0:02:30]} 35. Rd3+ {[%emt 0:00:29]} Rxd3 {[%emt 0:00:14]} 36. Bxd3 {[%emt 0:00:06][%mdl 4096] Endgame. KRB-KRB} Kd5 {[%emt 0:00:19]} 37. Kg2 {[%emt 0:02:23] [#]} e4 $1 {[%emt 0:00:04]} 38. Bc4+ {[%emt 0:00:10]} Ke5 {[%emt 0:00:35] Black has more active pieces.} 39. Kg3 {[%emt 0:01:17]} Rc2 {[%emt 0:00:04]} 40. f3 $2 {[%emt 0:00:00][%mdl 8192] [#] White does not recover from this.} (40. Bf7 $17) 40... e3 $1 $19 {[%emt 0:00:00]} 41. f4+ {[%emt 0:09:13]} (41. Bd3 $142 Rd2 42. Bb5) 41... gxf4+ {[%emt 0:02:11]} (41... Ke4 $142 {[%cal Oc2c4] ...Rxc4! would now be deadly.} 42. Ba6 e2 43. Bb7+ Ke3) 42. Rxf4 {[%emt 0:00:08]} e2 {[%emt 0:00:45]} 43. Rf5+ {[%emt 0:00:12]} Ke4 {[%emt 0:01:35]} 44. Rf4+ {[%emt 0:01:08]} Ke3 {[%emt 0:00:36]} 45. Rf3+ {[%emt 0:00:27]} Kd2 {[%emt 0:00:13]} 46. Bxe2 {[%emt 0:00:17]} Kxe2 {[%emt 0:00:03]} 47. Rf6 {[%emt 0:01:18]} (47. Kf4 $142) 47... Be3 {[%emt 0:01:02] Weighted Error Value: White=0.49/Black=0.20 (precise) .  Loses game:     	White=1     	---        Mistake:       	White=5     	Black=3      Inaccurate:     	White=1     	Black=2      OK:         	White=13    	Black=21     Best:        	White=2     	Black=2      Strong:       	---       	Black=2} (47... Bc7+ $142 48. Kh4 Bd8 (48... Bxh2 $2 49. Rxh6 Kf3 50. Rf6+ Bf4 51. Kh5 $19)) 0-1

[Event "Romanian Championship 2024"]
[Site "Eforie Nord"]
[Date "2024.02.29"]
[Round "7.5"]
[White "Serban, Cristian-Stefan"]
[Black "Cnejev, Vladimir-Alexandru"]
[Result "0-1"]
[ECO "E09"]
[WhiteElo "2309"]
[BlackElo "2311"]
[Annotator "RC"]
[PlyCount "158"]
[EventDate "2024.02.24"]
[EventType "swiss"]
[EventCountry "ROU"]
[SourceTitle "playchess.com"]
[Source "ChessBase"]
[SourceQuality "1"]
[TimeControl "40/5400+30:900+30"]

1. d4 {[%emt 0:01:54]} d5 {[%emt 0:00:06]} 2. c4 {[%emt 0:00:07]} e6 {[%emt 0:00:04]} 3. Nf3 {[%emt 0:00:09]} Nf6 {[%emt 0:00:09]} 4. g3 {[%emt 0:00:07]} Be7 {[%emt 0:00:05]} 5. Bg2 {[%emt 0:00:05]} O-O {[%emt 0:00:08]} 6. O-O {[%emt 0:00:05]} c6 {[%emt 0:00:07]} 7. Qc2 {[%emt 0:00:04]} b6 {[%emt 0:00:10]} 8. Rd1 {[%emt 0:00:06]} Nbd7 {[%emt 0:08:51]} 9. b3 {[%emt 0:00:12]} Ba6 {[%emt 0:00:07]} 10. Nbd2 {[%emt 0:01:50]} Rc8 {[%emt 0:00:50]} 11. e4 {[%emt 0:00:47]} h6 {[%emt 0:01:26]} 12. e5 {[%emt 0:03:49]} Nh7 {[%emt 0:00:16]} 13. h4 {[%emt 0:07:20]} Qc7 {[%emt 0:17:24]} 14. Bb2 {[%emt 0:16:48]} Rfd8 {[%emt 0:01:46]} 15. Rac1 {[%emt 0:01:44]} Qb8 {[%emt 0:09:03]} 16. Qb1 {[%emt 0:00:26]} Nhf8 {[%emt 0:00:26]} 17. Nf1 {[%emt 0:00:49]} Bb7 {[%emt 0:06:15]} 18. Ne3 {[%emt 0:01:01]} a5 {[%emt 0:00:55]} 19. Nh2 {[%emt 0:06:03]} Qa8 {[%emt 0:14:55]} 20. f4 {[%emt 0:09:02]} c5 {[%emt 0:01:22]} 21. cxd5 {[%emt 0:00:37]} cxd4 {[%emt 0:09:48]} 22. Rxc8 {[%emt 0:03:05]} Rxc8 {[%emt 0:01:04]} 23. Bxd4 {[%emt 0:00:54]} exd5 {[%emt 0:01:57]} 24. f5 {[%emt 0:04:46]} Bc5 {[%emt 0:04:20]} 25. Qb2 {[%emt 0:05:47]} Qb8 {[%emt 0:08:45]} 26. Nf3 {[%emt 0:09:16]} Bxd4 {[%emt 0:09:14]} 27. Qxd4 {[%emt 0:00:15]} Re8 {[%emt 0:00:02]} 28. f6 {[%emt 0:02:02]} Ne6 {[%emt 0:02:35]} 29. Qd2 {[%emt 0:04:14]} Nxe5 {[%emt 0:00:24]} 30. Nxe5 {[%emt 0:00:33]} Qxe5 {[%emt 0:00:02]} 31. fxg7 {[%emt 0:00:14]} Nxg7 {[%emt 0:01:34]} 32. Ng4 {[%emt 0:01:15]} Qe6 {[%emt 0:00:02]} 33. Qd4 {[%emt 0:06:51]} Nf5 {[%emt 0:01:56]} 34. Qf4 {[%emt 0:00:05]} Kg7 {[%emt 0:00:41]} 35. Bh3 {[%emt 0:05:47]} Bc8 {[%emt 0:00:38]} 36. Rf1 {[%emt 0:01:11]} Qd6 {[%emt 0:00:31]} 37. Qxd6 {[%emt 0:04:14]} Nxd6 {[%emt 0:00:01]} 38. Rd1 {[%emt 0:00:09]} h5 {[%emt 0:00:43]} 39. Nf2 {[%emt 0:00:06]} Re5 {[%emt 0:00:42]} 40. Nd3 {[%emt 0:00:00]} Re3 {[%emt 0:00:00]} 41. Bxc8 {[%emt 0:02:07]} Nxc8 {[%emt 0:00:49]} 42. Kf2 {[%emt 0:00:23]} d4 {[%emt 0:04:12]} 43. Nf4 {[%emt 0:00:44]} Rc3 {[%emt 0:03:20]} 44. Rxd4 {[%emt 0:01:10]} Rc2+ {[%emt 0:04:13]} 45. Kf3 {[%emt 0:00:34]} Rxa2 {[%emt 0:00:32]} 46. Rc4 {[%emt 0:02:52]} Ne7 {[%emt 0:00:38]} 47. Nxh5+ {[%emt 0:05:37]} Kh6 {[%emt 0:00:22]} 48. Nf4 {[%emt 0:00:59]} Ra3 {[%emt 0:00:37]} 49. Rc7 {[%emt 0:00:04]} Rxb3+ {[%emt 0:01:15]} 50. Kg4 {[%emt 0:01:05]} Ng6 {[%emt 0:00:31]} 51. Nd5 {[%emt 0:05:27]} Rb5 {[%emt 0:02:43]} 52. Ne3 {[%emt 0:01:40]} Ne5+ {[%emt 0:00:42]} 53. Kf4 {[%emt 0:00:10]} Kg7 {[%emt 0:01:47]} 54. Kg5 {[%emt 0:02:26]} Nf3+ {[%emt 0:00:31]} 55. Kg4 {[%emt 0:00:26]} Ne5+ {[%emt 0:00:28]} 56. Kg5 {[%emt 0:00:04]} Nf3+ {[%emt 0:00:24]} 57. Kg4 {[%emt 0:00:04]} Nd4 {[%emt 0:00:57]} 58. Rd7 {[%emt 0:00:53]} Rb3 {[%emt 0:00:32]} 59. Nd5 {[%emt 0:03:25]} Ne2 {[%emt 0:00:19]} 60. Nc7 {[%emt 0:00:28]} Rxg3+ {[%emt 0:00:16]} 61. Kf5 {[%emt 0:00:12]} Rf3+ {[%emt 0:00:36]} 62. Ke4 {[%emt 0:00:04]} Rh3 {[%emt 0:00:26]} 63. Ne6+ {[%emt 0:00:48]} Kf6 {[%emt 0:00:11]} 64. Nd8 {[%emt 0:00:07]} Nc3+ {[%emt 0:00:57]} 65. Kf4 {[%emt 0:00:07]} Rxh4+ {[%emt 0:00:14]} 66. Kg3 {[%emt 0:00:02]} Rc4 {[%emt 0:01:02]} 67. Rxf7+ {[%emt 0:00:59]} Ke5 {[%emt 0:00:05]} 68. Kf3 {[%emt 0:01:21]} a4 {[%emt 0:00:20]} 69. Ra7 {[%emt 0:00:06]} b5 {[%emt 0:00:35]} 70. Ke3 {[%emt 0:00:12]} Nd5+ {[%emt 0:00:10]} 71. Kd2 {[%emt 0:00:33]} Rc8 {[%emt 0:01:07]} 72. Nf7+ {[%emt 0:00:22]} Ke6 {[%emt 0:00:18]} 73. Ng5+ {[%emt 0:00:05]} Kd6 {[%emt 0:00:23]} 74. Ne4+ {[%emt 0:01:33]} Ke5 {[%emt 0:00:10]} 75. Nf2 {[%emt 0:01:16]} Kd4 {[%emt 0:00:18]} 76. Nd3 {[%emt 0:00:21]} Rh8 {[%emt 0:01:05]} 77. Nb2 {[%emt 0:00:41]} Rh2+ {[%emt 0:00:06]} 78. Kc1 {[%emt 0:00:03]} Kc3 {[%emt 0:00:15]} 79. Rd7 {[%emt 0:00:13]} Rc2+ {[%emt 0:00:09]} 0-1

[Event "Romanian Championship 2024"]
[Site "Eforie Nord"]
[Date "2024.02.29"]
[Round "7.6"]
[White "Nevednichy, Vladislav"]
[Black "Radu, David Cr."]
[Result "1-0"]
[ECO "C54"]
[WhiteElo "2451"]
[BlackElo "2142"]
[Annotator "TA"]
[PlyCount "71"]
[EventDate "2024.02.24"]
[EventType "swiss"]
[EventCountry "ROU"]
[SourceTitle "playchess.com"]
[Source "ChessBase"]
[SourceQuality "1"]
[TimeControl "40/5400+30:900+30"]

{[%evp 15,71,14,33,27,58,25,32,12,72,75,90,59,62,71,135,120,141,142,147,141,149,144,144,152,148,150,142,143,152,146,150,147,231,227,179,150,547,395,493,324,376,306,284,250,288,285,304,310,308,310,310,309,301,301,301,288,471,465]} 1. e4 {[%emt 0:00:02]} e5 {[%emt 0:00:32]} 2. Bc4 {[%emt 0:00:08]} Nf6 {[%emt 0:00:28]} 3. d3 {[%emt 0:00:03]} Nc6 {[%emt 0:02:27]} 4. Nf3 {[%emt 0:00:24]} Bc5 {[%emt 0:00:56]} 5. O-O {[%emt 0:00:12]} d6 {[%emt 0:04:36]} 6. c3 {[%emt 0:00:45]} a6 {[%emt 0:01:27]} 7. a4 {[%emt 0:00:14][%cal Ba2a4,Ba4a5][%mdl 32]} h6 {[%emt 0:03:29]} 8. b4 {[%emt 0:08:22]} Bb6 {[%emt 0:00:45]} 9. Re1 {[%emt 0:09:25]} g5 {[%emt 0:07:33]} 10. a5 {[%emt 0:04:25]} Ba7 {[%emt 0:00:45]} 11. Be3 {[%emt 0:00:04] White is slightly better.} Be6 {[%emt 0:09:40]} (11... g4 $11 {remains equal.} 12. Nfd2 Bxe3 13. Rxe3 h5) 12. Bxa7 $16 {[%emt 0:19:36] [#] Strongly threatening Bxe6.} Rxa7 {[%emt 0:04:06]} 13. Bxe6 {[%emt 0:01:27]} fxe6 {[%emt 0:00:09]} 14. d4 {[%emt 0:03:14]} Qe7 {[%emt 0:05:49]} (14... g4 $142 15. Nh4 h5) 15. dxe5 {[%emt 0:01:17]} dxe5 {[%emt 0:00:40]} 16. Nbd2 {[%emt 0:01:06]} O-O {[%emt 0:02:43][%cal Be8g8,Bg8h7,Bh7g7][%mdl 32]} 17. Nc4 {[%emt 0:02:23]} Nd7 {[%emt 0:04:41]} 18. h3 {[%emt 0:01:44]} Qg7 {[%emt 0:03:03]} 19. Re3 {[%emt 0:00:36][%cal Be1e3,Be3f3,Bf3f7][%mdl 32]} Raa8 {[%emt 0:01:20]} 20. Ra2 {[%emt 0:01:27][%cal Ba1a2,Ba2d2,Bd2d3][%mdl 32]} Rf7 {[%emt 0:08:26]} 21. Rd2 {[%emt 0:02:09]} Kh7 {[%emt 0:09:05]} 22. Nh2 {[%emt 0:02:50] White is more active.} Nf8 {[%emt 0:02:20]} 23. Rf3 {[%emt 0:01:34]} Re8 {[%emt 0:02:48]} (23... Re7 $16 {was called for.} 24. Ng4 Kh8) 24. Rxf7 $18 {[%emt 0:04:33]} Qxf7 {[%emt 0:00:04]} 25. Rd3 {[%emt 0:03:33]} Qf4 $2 {[%emt 0:07:32]} (25... Qg7 $16 {is more resistant.} 26. Ng4 Re7) 26. Ng4 {[%emt 0:01:40]} Kg7 {[%emt 0:01:02]} 27. Qe1 {[%emt 0:03:35] [#] Rf3 would now be deadly.} h5 {[%emt 0:02:12]} 28. g3 {[%emt 0:07:11]} Qf7 {[%emt 0:00:03]} 29. Ngxe5 {[%emt 0:00:07]} Nxe5 {[%emt 0:00:15]} 30. Nxe5 {[%emt 0:00:02]} Qf6 {[%emt 0:00:02]} 31. Nd7 {[%emt 0:05:57]} Nxd7 {[%emt 0:00:38]} 32. Rxd7+ {[%emt 0:00:02]} Re7 {[%emt 0:00:12]} 33. e5 {[%emt 0:04:52]} Qf7 {[%emt 0:00:02]} 34. Rxe7 {[%emt 0:01:13]} Qxe7 {[%emt 0:00:03]} 35. Qe3 {[%emt 0:00:39]} Qd8 $2 {[%emt 0:00:40]} (35... c6 36. Qd2 Kh6) 36. Qf3 {[%emt 0:00:24][%csl LRb7,LRh5] White took control after the opening.   Weighted Error Value: White=0.23 (precise) /Black=0.57.  Loses game:     	---       	Black=1      Mistake:       	---       	Black=4      Inaccurate:     	White=3     	Black=1      OK:         	White=15    	Black=9      Best:        	White=1     	---} 1-0